{"text_format":"1","workbook":"xlsx","n_sheets":5,"sheets":["Einleitung","Input","Output","Gespeicherte Gruppen","Images"],"not_rendered":{"charts":0,"images":21,"macros":1,"external_links":0,"defined_names":7,"comments":2,"pivot_tables":0},"unopened":[],"bounds":{"document_bytes":16777216,"sheet_cells":100000,"rows_first":2000,"rows_last":500,"rows_between":2000,"halvings":0,"cell_chars":16384,"cell_head_chars":4096},"cells_cut":0,"cells_raw":0,"read":"whole","date_system":"1900"}

{"sheet":"Einleitung","index":0,"n_rows":69,"n_cols":40,"rows_kept":69,"cut":false,"hidden":false,"merged":[[6,15,7,15],[28,3,28,14],[27,3,27,14]]}
[]
[]
[]
[null,null,null,null,null,null,null,null,null,null,null,null,null,"Bildschirmanpassung der Anzeige."]
[null,null,null,null,null,null,null,null,null,null,null,null,null,"Stellen Sie sicher, dass der rote Rahmen"]
[null,null,"Vom Umgang mit Risiken: Interaktives Lernen über Versicherungen.",null,null,null,null,null,null,null,null,null,null,"vollständig sichtbar ist.",null,null,null,null,null,"Veuillez patienter !"]
[null,null,null,null,null,null,null,null,null,null,null,null,null,null,null,100]
[]
[null,null,null,null,null,null,null,null,null,null,null,null,null,"(Zoom gilt für alle Laschen)"]
[]
[]
[]
[]
[]
[null,null,"HYPOTHESEN"]
[]
[null,null,"Alle Spielenden besitzen ein eignes Auto. Die Benutzung birgt das Risiko eines Sachschadens."]
[null,null,"Zur Vereinfachung nehmen wir an:"]
[null,null," - Es entstehen ausschliesslich Sachschäden am eigenen Fahrzeug."]
[null,null," - Pro Unfall wird eine Entschädigung in Höhe von 10 000 Franken ausbezahlt."]
[null,null," - Welche Spielenden von einem Sachschaden betroffen sind, wird zufällig bestimmt."]
[null,null," - Das Risiko eines Sachschadens besteht für alle Spielenden gleichermassen."]
[]
[]
[null,null,"ABLAUF"]
[]
[null,null," - Die Spielenden wählen ihre Risikodeckung aus drei Optionen:"]
[null,null,"R","das Risiko selbst tragen (maximaler Verlust 10 000 Franken pro Sachschaden)."]
[null,null,"V","sich versichern und eine jährliche Prämie von 600 Franken zahlen, um im Schadensfall einen finanziellen Ausgleich zu erhalten."]
[null,null,"S","Solidarität üben und eine Gruppe mit anderen Spielenden bilden, in der entstehende Kosten aufgeteilt werden."]
[]
[null,null," - Allen Spielenden wird eine Zahl zwischen 1 und 99 zugeordnet."]
[]
[null,null,"- Durch den Button «Nächstes Jahr» werden neue Spielende bestimmt, die von einem Sachschaden betroffen sind."]
[]
[]
[]
[]
[null,null,"HINWEISE"]
[]
[null,null," - Um den jährlichen Charakter von Versicherungen nachzubilden, können die Spielenden ihre Risikodeckung während der Simulation ändern."]
[]
[null,null," - Um aussagekräftige Erkenntnisse zu gewinnen, muss eine Simulation mindestens 15 Jahre dauern (1 Zug = 1 Jahr)."]
[]
[]
[]
[]
[]
[]
[]
[]
[]
[]
[]
[]
[]
[]
[]
[]
[]
[]
[]
[]
[]
[]
[]
[null,null,null,null,null,null,null,null,null,null,null,null,null,null,null,null,null,null,null,null,null,null,null,null,null,null,null,null,null,null,null,null,null,null,null,null,null,null,2]
[null,null,null,null,null,null,null,null,null,null,null,null,null,null,null,null,null,null,null,null,null,null,null,null,null,null,null,null,null,null,null,null,null,null,null,null,null,null,2,false]
[null,null,null,null,null,null,null,null,null,null,null,null,null,null,null,null,null,null,null,null,null,null,null,null,null,null,null,null,null,null,null,null,null,null,null,null,null,null,2]

{"sheet":"Input","index":1,"n_rows":65,"n_cols":21,"rows_kept":65,"cut":false,"hidden":false,"merged":[[4,26,17,34],[20,5,22,5],[27,5,29,5],[34,5,36,5],[3,2,3,4],[6,5,6,6],[16,20,18,25],[21,20,23,25]]}
[]
[]
[null,null,null,null,25,null,600]
["Hilfe"]
["ja/nein",null,"R","V ","S"]
[null,null,null,{"$f":"\"Prämie \"&Prime&\".-\"","v":"Prämie 600.-"}]
[null,{"$f":"E3&\" Spielende\"","v":"25 Spielende"},"das Risiko selbst tragen","sich versichern","Solidarität üben",null,null,null,null,null,null,{"$f":"IF(SUM(L8:L37)=0,\"\",\"Dépense\")","v":""},"R=oui","V=oui","S=oui","Somme(R+V+S)","Choix R,A ou S"]
[null,"Spieler:in 1",{"$f":"IF(H8=2,\"x\",\"\")","v":"x"},null,null,null,null,{"$f":"COUNTBLANK(D8:E8)","v":2},null,1,null,{"$f":"IF(COUNTBLANK(D8)=0,Prime,\"\")","v":""},{"$f":"IF(C8=\"\",0,1)","v":1},{"$f":"IF(D8=\"\",0,3)","v":0},{"$f":"IF(E8=\"\",0,5)","v":0},{"$f":"SUM(M8:O8)","v":1},{"$f":"IF(P8=5,\"S\",IF(P8=3,\"V\",\"R\"))","v":"R"}]
[null,"Spieler:in 2",{"$f":"IF(H9=2,\"x\",\"\")","v":"x"},null,null,null,null,{"$f":"COUNTBLANK(D9:E9)","v":2},null,2,null,{"$f":"IF(COUNTBLANK(D9)=0,Prime,\"\")","v":""},{"$f":"IF(C9=\"\",0,1)","v":1},{"$f":"IF(D9=\"\",0,3)","v":0},{"$f":"IF(E9=\"\",0,5)","v":0},{"$f":"SUM(M9:O9)","v":1},{"$f":"IF(P9=5,\"S\",IF(P9=3,\"V\",\"R\"))","v":"R"}]
[null,"Spieler:in 3","x",null,null,null,null,2,null,3,null,"",1,0,0,1,"R",null,null,"Simulationsanleitung"]
[null,"Spieler:in 4",{"$f":"IF(H11=2,\"x\",\"\")","v":"x"},null,null,null,null,2,null,4,null,"",1,0,0,1,"R"]
[null,"Spieler:in 5","x",null,null,null,null,2,null,5,null,"",1,0,0,1,"R"]
[null,"Spieler:in 6","x",null,null,null,null,2,null,6,null,"",1,0,0,1,"R",null,null,null,"Anzahl Spielende festlegen"]
[null,"Spieler:in 7","x",null,null,null,null,2,null,7,null,"",1,0,0,1,"R"]
[null,"Spieler:in 8","x",null,null,null,null,2,null,8,null,"",1,0,0,1,"R"]
[null,"Spieler:in 9","x",null,null,null,null,2,null,9,null,"",1,0,0,1,"R"]
[null,"Spieler:in 10","x",null,null,null,null,2,null,10,null,"",1,0,0,1,"R",null,null,null,"In der ersten Spalte: Setzen Sie die Namen der Spielenden ein oder wählen Sie eine bestehende Gruppe in der Lasche «Gespeicherte Gruppen» aus. "]
[null,"Spieler:in 11","x",null,null,null,null,2,null,11,null,"",1,0,0,1,"R"]
[null,"Spieler:in 12","x",null,null,null,null,2,null,12,null,"",1,0,0,1,"R"]
[null,"Spieler:in 13","x",null,null,null,null,2,null,13,null,"",1,0,0,1,"R"]
[null,"Spieler:in 14","x",null,null,"R",null,2,null,14,null,"",1,0,0,1,"R"]
[null,"Spieler:in 15","x",null,null,null,null,2,null,15,null,"",1,0,0,1,"R",null,null,null,"Die Spalte R ist standardgemäss ausgefüllt und kann nicht bearbeitet werden. Wenn die Spielenden V oder S als Risikodeckung wählen, müssen Sie das Kreuz in der entsprechenden Spalte setzen."]
[null,"Spieler:in 16","x",null,null,null,null,2,null,16,null,"",1,0,0,1,"R"]
[null,"Spieler:in 17","x",null,null,{"$f":"M58","v":25},null,2,null,17,null,"",1,0,0,1,"R"]
[null,"Spieler:in 18","x",null,null,null,null,2,null,18,null,"",1,0,0,1,"R"]
[null,"Spieler:in 19","x",null,null,null,null,2,null,19,null,"",1,0,0,1,"R",null,null,null,"Klicken Sie auf den Button «Auswahl bestätigen»"]
[null,"Spieler:in 20","x",null,null,null,null,2,null,20,null,"",1,0,0,1,"R"]
[null,"Spieler:in 21","x",null,null,"V",null,2,null,21,null,"",1,0,0,1,"R",null,null,null,"...danach geht es in der Lasche «Output» weiter"]
[null,"Spieler:in 22","x",null,null,null,null,2,null,22,null,"",1,0,0,1,"R"]
[null,"Spieler:in 23","x",null,null,null,null,2,null,23,null,"",1,0,0,1,"R"]
[null,"Spieler:in 24","x",null,null,{"$f":"N58","v":0},null,2,null,24,null,"",1,0,0,1,"R",null,null,null,"Für Hilfe: Klicken Sie den Hilfebutton"]
[null,"Spieler:in 25","x",null,null,null,null,2,null,25,null,"",1,0,0,1,"R"]
[null,"Spieler:in 26","x",null,null,null,null,2,null,26,null,"",1,0,0,1,"R",null,null,null,"  "]
[null,"Spieler:in 27","x",null,null,null,null,2,null,27,null,"",1,0,0,1,"R"]
[null,"Spieler:in 28","x",null,null,"S",null,2,null,28,null,"",1,0,0,1,"R"]
[null,"Spieler:in 29","x",null,null,null,null,2,null,29,null,"",1,0,0,1,"R"]
[null,"Spieler:in 30","x",null,null,null,null,2,null,30,null,"",1,0,0,1,"R"]
[null,"Spieler:in 31","x",null,null,{"$f":"O58","v":0},null,2,null,31,null,"",1,0,0,1,"R"]
[null,"Spieler:in 32","x",null,null,null,null,2,null,32,null,"",1,0,0,1,"R"]
[null,"Spieler:in 33","x",null,null,null,null,2,null,33,null,"",1,0,0,1,"R"]
[null,"Spieler:in 34","x",null,null,null,null,2,null,34,null,"",1,0,0,1,"R"]
[null,"Spieler:in 35","x",null,null,null,null,2,null,35,null,"",1,0,0,1,"R"]
[null,"Spieler:in 36","x",null,null,null,null,2,null,36,null,"",1,0,0,1,"R"]
[null,"Spieler:in 37","x",null,null,null,null,2,null,37,null,"",1,0,0,1,"R"]
[null,"Spieler:in 38","x",null,null,null,null,2,null,38,null,"",1,0,0,1,"R"]
[null,"Spieler:in 39","x",null,null,null,null,2,null,39,null,"",1,0,0,1,"R"]
[null,"Spieler:in 40","x",null,null,null,null,2,null,40,null,"",1,0,0,1,"R"]
[null,"Spieler:in 41","x",null,null,null,null,2,null,41,null,"",1,0,0,1,"R"]
[null,"Spieler:in 42","x",null,null,null,null,2,null,42,null,"",1,0,0,1,"R"]
[null,"Spieler:in 43","x",null,null,null,null,2,null,43,null,"",1,0,0,1,"R"]
[null,"Spieler:in 44","x",null,null,null,null,2,null,44,null,"",1,0,0,1,"R"]
[null,"Spieler:in 45","x",null,null,null,null,2,null,45,null,"",1,0,0,1,"R"]
[null,"Spieler:in 46","x",null,null,null,null,2,null,46,null,"",1,0,0,1,"R"]
[null,"Spieler:in 47","x",null,null,null,null,2,null,47,null,"",1,0,0,1,"R"]
[null,"Spieler:in 48","x",null,null,null,null,2,null,48,null,"",1,0,0,1,"R"]
[null,"Spieler:in 49","x",null,null,null,null,2,null,49,null,"",1,0,0,1,"R"]
[null,"Spieler:in 50","x",null,null,null,null,2,null,50,null,"",1,0,0,1,"R"]
[null,null,null,null,null,null,null,"NB SI 0:",null,null,null,null,{"$f":"NB_joueurs-COUNTIF(M8:M57,0)","v":25},{"$f":"COUNTIF(N8:N57,3)","v":0},{"$f":"COUNTIF(O8:O57,5)","v":0}]
[null,null,null,null,null,null,null,{"$f":"COUNTIF(H8:H57,0)","v":0}]
[]
[]
[]
[]
[]
["Regeneration des Blattes, bei Fehlermeldung #REF  "]

{"sheet":"Output","index":2,"n_rows":90,"n_cols":55,"rows_kept":90,"cut":false,"hidden":false,"merged":[[36,8,36,9],[74,15,74,16],[60,37,61,37],[60,34,61,36],[53,1,54,20],[39,8,39,9],[1,53,1,54],[24,21,25,21],[29,16,29,19],[19,7,21,9],[32,16,32,19],[32,14,32,15],[31,10,31,19],[31,8,31,9],[27,8,27,9],[9,2,10,17],[18,10,22,18],[5,4,5,17],[6,5,7,16],[60,39,61,39],[60,38,61,38],[59,37,59,39],[53,45,53,46],[34,15,34,19],[36,10,36,19],[38,15,38,19],[37,14,37,15],[81,1,81,3],[81,17,81,19],[76,15,76,16],[40,8,40,9],[5,1,6,1],[28,16,28,19],[24,2,25,9],[24,10,25,11],[24,12,25,18],[19,2,21,6],[12,2,13,19],[17,1,17,5],[28,14,28,15],[27,10,27,19],[33,15,33,19],[37,16,37,19]]}
[null,null,null,null,null,null,null,null,null,null," ",null,null,null,null," ",null,null,null,null,null,null,null,null,null,null,null,null,null,null,null,null,33,34,null,null,null,38,39,40,41,42,43]
[null,null,null,null,null,null,null,null,null,null,null,null,null,null,null,null,null,null,null,null,null,null,null,null,null,"Zufallszahl","Ereignis",null,null,"Deckung","Anzahl Schäden","Kosten dieses Jahr","Solde",null,{"$f":"\"Kosten total (inkl Jahr \"&H20&\" )\"","v":"Kosten total (inkl Jahr 0 )"},"Min.            Max.","accident","R","V","S","Accidents S","Accidents V","Accidents année","surprime","Cumul R","Cumul  V","Cumul S","Total acc j","Tot frais acc.","Si assuré","Franchise","Dép S yc fr"," +ou -","Gewinner:in\nVerlierer:in"]
[null,null,null,null,null,null,620,null,null,null,null,null,null,null,null,null,null,null,null,null,null,null,null,{"$f":"IF(AA3=\"Unfall\",\"M\",IF(AND(AV3=0,(Z3>0)),\"{\",\"\"))","v":""},{"$f":"IF(AB3>NB_joueurs,\"\",Input!B8)","v":"Spieler:in 1"},null,null,1,null,{"$f":"IF(Z3=\"\",\"\",Input!Q8)","v":""},null,{"$f":"IF($H$20=0,0,IF(SUM(AL3:AN3)=0,0,SUM(AL3:AN3)))","v":0},null,null,{"$f":"AG3+AF3+BA3","v":0},{"$f":"IF(AI3=MIN(Depenses),\"C\",IF(AI3=MAX(Depenses),\"D\",\"\"))","v":"C"},{"$f":"IF(AA3=\"schaden\",10000,0)","v":0},{"$f":"IF(AD3=\"R\",AK3,0)","v":0},{"$f":"IF(AD3=\"V\",ROUND((Prime*AR3/5),0)*5,0)","v":0},{"$f":"IF(AD3=\"S\",(($AO$53/$AL$54)),0)","v":0},{"$f":"IF(AD3=\"S\",AK3,0)","v":0},{"$f":"IF(AD3=\"V\",AK3,0)","v":0},{"$f":"(AL3+AO3+AP3)/10000","v":0},{"$f":"IF($AL$68=FALSE,1,(IF(AE3>0,1+(AE3-0)/10,1)))","v":1},{"$f":"IF($AD3=\"R\",$AE3,0)","v":0},{"$f":"IF($AD3=\"V\",$AE3,0)","v":0},{"$f":"IF($AD3=\"S\",$AE3,0)","v":0},{"$f":"AQ3+SUM(AS3:AU3)","v":0},{"$f":"AV3*10000","v":0},{"$f":"IF(AW3>=$AU$61*$H$20,\"L\",\"J\")","v":"L"},{"$f":"AV3*2000","v":0},{"$f":"$V$38*2000/$I$37","v":{"$error":"#DIV/0!"}},{"$f":"IF(AD3=\"S\",IF($AL$69=FALSE,0,AY3-AZ3),0)","v":0},{"$f":"IF($H$20=0,\"\",IF(AW3=AI3,AX3,IF(AW3<AI3,\"L\",\"J\")))","v":""},{"$f":"Y3","v":"Spieler:in 1"}]
[null,null,null,null,null,null,null,null,null,null,null,null,null,null,null,null,null,null,null,null,null,null,null,"",{"$f":"IF(AB4>NB_joueurs,\"\",Input!B9)","v":"Spieler:in 2"},null,null,2,null,{"$f":"IF(Z4=\"\",\"\",Input!Q9)","v":""},null,0,null,null,{"$f":"AG4+AF4+BA4","v":0},"C",{"$f":"IF(AA4=\"schaden\",10000,0)","v":0},{"$f":"IF(AD4=\"R\",AK4,0)","v":0},0,{"$f":"IF(AD4=\"S\",(($AO$53/$AL$54)),0)","v":0},{"$f":"IF(AD4=\"S\",AK4,0)","v":0},{"$f":"IF(AD4=\"V\",AK4,0)","v":0},{"$f":"(AL4+AO4+AP4)/10000","v":0},{"$f":"IF($AL$68=FALSE,1,(IF(AE4>0,1+(AE4-0)/10,1)))","v":1},0,{"$f":"IF($AD4=\"V\",$AE4,0)","v":0},0,{"$f":"AQ4+SUM(AS4:AU4)","v":0},0,{"$f":"IF(AW4>=$AU$61*$H$20,\"L\",\"J\")","v":"L"},{"$f":"AV4*2000","v":0},{"$f":"$V$38*2000/$I$37","v":{"$error":"#DIV/0!"}},{"$f":"IF(AD4=\"S\",IF($AL$69=FALSE,0,AY4-AZ4),0)","v":0},{"$f":"IF($H$20=0,\"\",IF(AW4=AI4,AX4,IF(AW4<AI4,\"L\",\"J\")))","v":""},{"$f":"Y4","v":"Spieler:in 2"}]
["Hilfe",null,null,null,null,null,null,null,null,null,null,null,null,null,null,null,null,null,null,null,null,null,null,"",{"$f":"IF(AB5>NB_joueurs,\"\",Input!B10)","v":"Spieler:in 3"},null,null,3,null,{"$f":"IF(Z5=\"\",\"\",Input!Q10)","v":""},null,0,null,null,0,"C",0,0,0,0,0,0,0,1,0,0,0,0,0,"L",0,{"$f":"INT($V$38*2000/$I$37)","v":{"$error":"#DIV/0!"}},0,"","Spieler:in 3"]
["ja/nein",null,null,null,null,null,null,null,null,null,null,null,null,null,null,null,null,null,null,null,null,null,null,"",{"$f":"IF(AB6>NB_joueurs,\"\",Input!B11)","v":"Spieler:in 4"},null,null,4,null,{"$f":"IF(Z6=\"\",\"\",Input!Q11)","v":""},null,0,null,null,0,"C",0,0,0,0,0,0,0,1,0,0,0,0,0,"L",0,{"$f":"INT($V$38*2000/$I$37)","v":{"$error":"#DIV/0!"}},0,"","Spieler:in 4"]
[null,null,null,null,null,"Ziehen Sie bitte die Zufallszahlen!",null,null,null,null,null,null,null,null,null,null,null,null,null,null,null,null,null,"",{"$f":"IF(AB7>NB_joueurs,\"\",Input!B12)","v":"Spieler:in 5"},null,null,5,null,{"$f":"IF(Z7=\"\",\"\",Input!Q12)","v":""},null,0,null,null,0,"C",0,0,0,0,0,0,0,1,0,0,0,0,0,"L",0,{"$error":"#DIV/0!"},0,"","Spieler:in 5"]
[null,null,null,null,null,null,null,null,null,null,null,null,null,null,null,null,null,null,null,null,null,null,null,"",{"$f":"IF(AB8>NB_joueurs,\"\",Input!B13)","v":"Spieler:in 6"},null,null,6,null,{"$f":"IF(Z8=\"\",\"\",Input!Q13)","v":""},null,0,null,null,0,"C",0,0,0,0,0,0,0,1,0,0,0,0,0,"L",0,{"$error":"#DIV/0!"},0,"","Spieler:in 6"]
["Zoom -",null,null,null,null,null,null,null,null,null,null,null,null,null,null,null,null,null,null,null,null,null,null,"",{"$f":"IF(AB9>NB_joueurs,\"\",Input!B14)","v":"Spieler:in 7"},null,null,7,null,{"$f":"IF(Z9=\"\",\"\",Input!Q14)","v":""},null,0,null,null,0,"C",0,0,0,0,0,0,0,1,0,0,0,0,0,"L",0,{"$error":"#DIV/0!"},0,"","Spieler:in 7"]
[null,null,"Gesamtausgaben Mitglieder «Solidarität üben» mit Selbstbehalt ansehen",null,null,null,null,null,null,null,null,null,null,null,null,null,null,null,null,null,null,null,null,"",{"$f":"IF(AB10>NB_joueurs,\"\",Input!B15)","v":"Spieler:in 8"},null,null,8,null,{"$f":"IF(Z10=\"\",\"\",Input!Q15)","v":""},null,0,null,null,0,"C",0,0,0,0,0,0,0,1,0,0,0,0,0,"L",0,{"$error":"#DIV/0!"},0,"","Spieler:in 8"]
[null,null,null,null,null,null,null,null,null,null,null,null,null,null,null,null,null,null,null,null,null,null,null,"",{"$f":"IF(AB11>NB_joueurs,\"\",Input!B16)","v":"Spieler:in 9"},null,null,9,null,{"$f":"IF(Z11=\"\",\"\",Input!Q16)","v":""},null,{"$f":"IF($H$20=0,0,IF(SUM(AL11:AN11)=0,0,SUM(AL11:AN11)))","v":0},null,null,0,"C",0,0,0,0,0,0,0,1,0,0,0,0,0,"L",0,{"$error":"#DIV/0!"},0,"","Spieler:in 9"]
["Zoom +",null,null,null,null,null,null,null,null,null,null,null,null,null,null,null,null,null,null,null,null,null,null,"",{"$f":"IF(AB12>NB_joueurs,\"\",Input!B17)","v":"Spieler:in 10"},null,null,10,null,{"$f":"IF(Z12=\"\",\"\",Input!Q17)","v":""},null,0,null,null,0,"C",0,0,0,0,0,0,0,1,0,0,0,0,0,"L",0,{"$error":"#DIV/0!"},0,"","Spieler:in 10"]
[null,null,{"$f":"IF(F7=\"Ziehung abgeschlossen\",\"Auf den Button '\"&AL65&\"' klicken für \"&AL66,\"\")","v":""},null,null,null,null,null,null,null,null,null,null,null,null,null,null,null,null,null,null,null,null,"",{"$f":"IF(AB13>NB_joueurs,\"\",Input!B18)","v":"Spieler:in 11"},null,null,11,null,{"$f":"IF(Z13=\"\",\"\",Input!Q18)","v":""},null,0,null,null,0,"C",0,0,0,0,0,0,0,1,0,0,0,0,0,"L",0,{"$error":"#DIV/0!"},0,"","Spieler:in 11"]
[null,null,null,null,null,null,null,null,null,null,null,null,null,null,null,null,null,null,null,null,null,null,null,"",{"$f":"IF(AB14>NB_joueurs,\"\",Input!B19)","v":"Spieler:in 12"},null,null,12,null,{"$f":"IF(Z14=\"\",\"\",Input!Q19)","v":""},null,0,null,null,0,"C",0,0,0,0,0,0,0,1,0,0,0,0,0,"L",0,{"$error":"#DIV/0!"},0,"","Spieler:in 12"]
[null,null,null,null,null,null,null,null,null,null,null,null,null,null,null,null,null,null,null,null,null,null,null,"",{"$f":"IF(AB15>NB_joueurs,\"\",Input!B20)","v":"Spieler:in 13"},null,null,13,null,{"$f":"IF(Z15=\"\",\"\",Input!Q20)","v":""},null,0,null,null,0,"C",0,0,0,0,0,0,0,1,0,0,0,0,0,"L",0,{"$error":"#DIV/0!"},0,"","Spieler:in 13"]
["Einstellungen",null,null,null,null,null,null,null,null,null,null,null,null,null,null,null,null,null,null,null,null,null,null,"",{"$f":"IF(AB16>NB_joueurs,\"\",Input!B21)","v":"Spieler:in 14"},null,null,14,null,{"$f":"IF(Z16=\"\",\"\",Input!Q21)","v":""},null,0,null,null,0,"C",0,0,0,0,0,0,0,1,0,0,0,0,0,"L",0,{"$error":"#DIV/0!"},0,"","Spieler:in 14"]
[null,null,null,null,null,null,null,null,null,null,null,null,null,null,null,null,null,null,null,null,null,null,null,"",{"$f":"IF(AB17>NB_joueurs,\"\",Input!B22)","v":"Spieler:in 15"},null,null,15,null,{"$f":"IF(Z17=\"\",\"\",Input!Q22)","v":""},null,0,null,null,0,"C",0,0,0,0,0,0,0,1,0,0,0,0,0,"L",0,{"$error":"#DIV/0!"},0,"","Spieler:in 15"]
[null,null,null,null,null,null,null,null,null,null,null,null,null,null,null,null,null,null,null,null,null,null,null,"",{"$f":"IF(AB18>NB_joueurs,\"\",Input!B23)","v":"Spieler:in 16"},null,null,16,null,{"$f":"IF(Z18=\"\",\"\",Input!Q23)","v":""},null,0,null,null,0,"C",0,0,0,0,0,0,0,1,0,0,0,0,0,"L",0,{"$error":"#DIV/0!"},0,"","Spieler:in 16"]
[null,null,null,null,null,null,null,null,null,null,null,null,null,null,null,null,null,null,null,null,null,null,null,"",{"$f":"IF(AB19>NB_joueurs,\"\",Input!B24)","v":"Spieler:in 17"},null,null,17,null,{"$f":"IF(Z19=\"\",\"\",Input!Q24)","v":""},null,0,null,null,0,"C",0,0,0,0,0,0,0,1,0,0,0,0,0,"L",0,{"$error":"#DIV/0!"},0,"","Spieler:in 17"]
["nach unten",null,"Jahr",null,null,null,null,0,null,null,null,null,null,null,null,null,null,null,null,null,null,null,null,"",{"$f":"IF(AB20>NB_joueurs,\"\",Input!B25)","v":"Spieler:in 18"},null,null,18,null,{"$f":"IF(Z20=\"\",\"\",Input!Q25)","v":""},null,0,null,null,0,"C",0,0,0,0,0,0,0,1,0,0,0,0,0,"L",0,{"$error":"#DIV/0!"},0,"","Spieler:in 18"]
[null,null,null,null,null,null,null,null,null,null,null,null,null,null,null,null,null,null,null,null,null,null,null,"",{"$f":"IF(AB21>NB_joueurs,\"\",Input!B26)","v":"Spieler:in 19"},null,null,19,null,{"$f":"IF(Z21=\"\",\"\",Input!Q26)","v":""},null,0,null,null,0,"C",0,0,0,0,0,0,0,1,0,0,0,0,0,"L",0,{"$error":"#DIV/0!"},0,"","Spieler:in 19"]
[null,null,null,null,null,null,null,null,null,null,null,null,null,null,null,null,null,null,null,null,null,null,null,"",{"$f":"IF(AB22>NB_joueurs,\"\",Input!B27)","v":"Spieler:in 20"},null,null,20,null,{"$f":"IF(Z22=\"\",\"\",Input!Q27)","v":""},null,0,null,null,0,"C",0,0,0,0,0,0,0,1,0,0,0,0,0,"L",0,{"$error":"#DIV/0!"},0,"","Spieler:in 20"]
[null,null,null,null,null,null,null,null,null,null,null,null,null,null,null,null,null,null,null,null,null,null,null,"",{"$f":"IF(AB23>NB_joueurs,\"\",Input!B28)","v":"Spieler:in 21"},null,null,21,null,{"$f":"IF(Z23=\"\",\"\",Input!Q28)","v":""},null,0,null,null,0,"C",0,0,0,0,0,0,0,1,0,0,0,0,0,"L",0,{"$error":"#DIV/0!"},0,"","Spieler:in 21"]
[null,null,null,null,null,null,null,null,null,null,null,null,null,null,null,null,null,null,null,null,null,null,null,"",{"$f":"IF(AB24>NB_joueurs,\"\",Input!B29)","v":"Spieler:in 22"},null,null,22,null,{"$f":"IF(Z24=\"\",\"\",Input!Q29)","v":""},null,0,null,null,0,"C",0,0,0,0,0,0,0,1,0,0,0,0,0,"L",0,{"$error":"#DIV/0!"},0,"","Spieler:in 22"]
[null,null,"Dieses Jahr",null,null,null,null,null,null,null,{"$f":"AQ53","v":0},null,"Schaden",null,null,null,null,null,null,null,null,"Total",null,"",{"$f":"IF(AB25>NB_joueurs,\"\",Input!B30)","v":"Spieler:in 23"},null,null,23,null,{"$f":"IF(Z25=\"\",\"\",Input!Q30)","v":""},null,0,null,null,0,"C",0,0,0,0,0,0,0,1,0,0,0,0,0,"L",0,{"$error":"#DIV/0!"},0,"","Spieler:in 23"]
[null,null,null,null,null,null,null,null,null,null,null,null,null,null,null,null,null,null,null,null,null,null,null,"",{"$f":"IF(AB26>NB_joueurs,\"\",Input!B31)","v":"Spieler:in 24"},null,null,24,null,{"$f":"IF(Z26=\"\",\"\",Input!Q31)","v":""},null,0,null,null,0,"C",0,0,0,0,0,0,0,1,0,0,0,0,0,"L",0,{"$error":"#DIV/0!"},0,"","Spieler:in 24"]
[null,null,null,null,null,null,null,null,null,null,null,null,null,null,null,null,null,null,null,null,null,null,null,"",{"$f":"IF(AB27>NB_joueurs,\"\",Input!B32)","v":"Spieler:in 25"},null,null,25,null,{"$f":"IF(Z27=\"\",\"\",Input!Q32)","v":""},null,0,null,null,0,"C",0,0,0,0,0,0,0,1,0,0,0,0,0,"L",0,{"$error":"#DIV/0!"},0,"","Spieler:in 25"]
[null,"R:",null,null,null,null,null,null,{"$f":"COUNTIF($AD$3:$AD$52,\"R\")","v":0},null,"Risiko selber tragen",null,null,null,null,null,null,null,null,null,null,null,null,{"$f":"IF(AA28=\"accident\",\"M\",IF(AND(AV28=0,(Z28>0)),\"{\",\"\"))","v":""},{"$f":"IF(AB28>NB_joueurs,\"\",Input!B33)","v":""},null,null,26,null,{"$f":"IF(Z28=\"\",\"\",Input!Q33)","v":""},null,0,null,null,0,"C",0,0,0,0,0,0,0,1,0,0,0,0,0,"L",0,{"$error":"#DIV/0!"},0,"",""]
[null,null,"Schäden dieses Jahr:",null,null,null,null,null,null,null,null,null,null,null,{"$f":"IF(Q29=0,\"J\",\"\")","v":"J"},null,{"$f":"AQ55","v":0},null,null,null,null,{"$f":"AS53+AL55","v":0},null,"",{"$f":"IF(AB29>NB_joueurs,\"\",Input!B34)","v":""},null,null,27,null,{"$f":"IF(Z29=\"\",\"\",Input!Q34)","v":""},null,0,null,null,0,"C",0,0,0,0,0,0,0,1,0,0,0,0,0,"L",0,{"$error":"#DIV/0!"},0,"",""]
[null,null,"Kosten pro Schaden:",null,null,null,null,null,null,null,null,null,null,null,null,null,{"$f":"IF(Q29>0,\"10'000.-\",\"\")","v":""},null,null,null,null,{"$f":"V29*10000","v":0},null,"",{"$f":"IF(AB30>NB_joueurs,\"\",Input!B35)","v":""},null,null,28,null,{"$f":"IF(Z30=\"\",\"\",Input!Q35)","v":""},null,0,null,null,0,"C",0,0,0,0,0,0,0,1,0,0,0,0,0,"L",0,{"$error":"#DIV/0!"},0,"",""]
[null,null,null,null,null,null,null,null,null,null,null,null,null,null,null,null,null,null,null,null,null,null,null,"",{"$f":"IF(AB31>NB_joueurs,\"\",Input!B36)","v":""},null,null,29,null,{"$f":"IF(Z31=\"\",\"\",Input!Q36)","v":""},null,0,null,null,0,"C",0,0,0,0,0,0,0,1,0,0,0,0,0,"L",0,{"$error":"#DIV/0!"},0,"",""]
[null,"V:",null,null,null,null,null,null,{"$f":"COUNTIF($AD$3:$AD$52,\"V\")","v":0},null,"sich versichern",null,null,null,null,null,null,null,null,null,null,null,null,"",{"$f":"IF(AB32>NB_joueurs,\"\",Input!B37)","v":""},null,null,30,null,{"$f":"IF(Z32=\"\",\"\",Input!Q37)","v":""},null,0,null,null,0,"C",0,0,0,0,0,0,0,1,0,0,0,0,0,"L",0,{"$error":"#DIV/0!"},0,"",""]
[null,null,"Schäden dieses Jahr:",null,null,null,null,null,null,null,null,null,null,null,{"$f":"IF(Q33=0,\"J\",\"\")","v":"J"},null,{"$f":"AP55","v":0},null,null,null,null,{"$f":"AT53+AP55","v":0},null,"",{"$f":"IF(AB33>NB_joueurs,\"\",Input!B38)","v":""},null,null,31,null,{"$f":"IF(Z33=\"\",\"\",Input!Q38)","v":""},null,0,null,null,0,"C",0,0,0,0,0,0,0,1,0,0,0,0,0,"L",0,{"$error":"#DIV/0!"},0,"",""]
[null,null,"Prämien einbezahlt:",null,null,null,null,null,null,null,null,null,null,null,null,{"$f":"IF(H20=0,0,AM53)","v":0},null,null,null,null,null,0,null,"",{"$f":"IF(AB34>NB_joueurs,\"\",Input!B39)","v":""},null,null,32,null,{"$f":"IF(Z34=\"\",\"\",Input!Q39)","v":""},null,0,null,null,0,"C",0,0,0,0,0,0,0,1,0,0,0,0,0,"L",0,{"$error":"#DIV/0!"},0,"",""]
[null,null,"Kosten vermieden:",null,null,null,null,null,null,null,null,null,null,null,null,{"$f":"AP53","v":0},null,null,null,null,null,{"$f":"V33*10000","v":0},null,"",{"$f":"IF(AB35>NB_joueurs,\"\",Input!B40)","v":""},null,null,33,null,{"$f":"IF(Z35=\"\",\"\",Input!Q40)","v":""},null,0,null,null,0,{"$f":"IF(AI35=MIN(Depenses),\"C\",IF(AI35=MAX(Depenses),\"D\",\"\"))","v":"C"},0,0,{"$f":"IF(AD35=\"V\",ROUND((Prime*AR35/5),0)*5,0)","v":0},0,0,0,0,1,0,0,0,0,0,"L",0,{"$error":"#DIV/0!"},0,"",""]
[null,null,null,null,null,null,null,null,null,null,null,null,null,null,null,null,null,null,null,null,null,null,null,"",{"$f":"IF(AB36>NB_joueurs,\"\",Input!B41)","v":""},null,null,34,null,{"$f":"IF(Z36=\"\",\"\",Input!Q41)","v":""},null,0,null,null,0,{"$f":"IF(AI36=MIN(Depenses),\"C\",IF(AI36=MAX(Depenses),\"D\",\"\"))","v":"C"},0,0,0,0,0,0,0,1,0,0,0,0,0,"L",0,{"$error":"#DIV/0!"},0,"",""]
[null,"S:",null,null,null,null,null,null,{"$f":"COUNTIF($AD$3:$AD$52,\"S\")","v":0},null,"Solidarität üben",null,null,null,null,null,null,null,null,null,null,null,null,{"$f":"IF(AA37=\"accident\",\"M\",IF(AND(AV37=0,(Z37>0)),\"{\",\"\"))","v":""},{"$f":"IF(AB37>NB_joueurs,\"\",Input!B42)","v":""},null,null,35,null,{"$f":"IF(Z37=\"\",\"\",Input!Q42)","v":""},null,{"$f":"IF($H$20=0,0,IF(SUM(AL37:AN37)=0,0,SUM(AL37:AN37)))","v":0},null,null,{"$f":"AG37+AF37+BA37","v":0},{"$f":"IF(AI37=MIN(Depenses),\"C\",IF(AI37=MAX(Depenses),\"D\",\"\"))","v":"C"},0,{"$f":"IF(AD37=\"R\",AK37,0)","v":0},0,{"$f":"IF(AD37=\"S\",(($AO$53/$AL$54)),0)","v":0},{"$f":"IF(AD37=\"S\",AK37,0)","v":0},0,{"$f":"(AL37+AO37+AP37)/10000","v":0},1,0,0,0,{"$f":"AQ37+SUM(AS37:AU37)","v":0},{"$f":"AV37*10000","v":0},{"$f":"IF(AW37>=$AU$61*$H$20,\"L\",\"J\")","v":"L"},{"$f":"AV37*2000","v":0},{"$error":"#DIV/0!"},0,{"$f":"IF($H$20=0,\"\",IF(AW37=AI37,AX37,IF(AW37<AI37,\"L\",\"J\")))","v":""},{"$f":"Y37","v":""}]
[null,null,"Schäden dieses Jahr:",null,null,null,null,null,null,null,null,null,null,null,{"$f":"IF(Q38=0,\"J\",\"\")","v":"J"},null,{"$f":"AO55","v":0},null,null,null,null,{"$f":"AU53+AO55","v":0},null,"",{"$f":"IF(AB38>NB_joueurs,\"\",Input!B43)","v":""},null,null,36,null,{"$f":"IF(Z38=\"\",\"\",Input!Q43)","v":""},null,0,null,null,0,"C",0,0,0,0,0,0,0,1,0,0,0,0,0,"L",0,{"$error":"#DIV/0!"},0,"",""]
[null,null,"Gruppenkosten:",null,null,null,null,null,null,null,null,null,null,null,null,{"$f":"AO53","v":0},null,null,null,null,null,{"$f":"V38*10000","v":0},null,"",{"$f":"IF(AB39>NB_joueurs,\"\",Input!B44)","v":""},null,null,37,null,{"$f":"IF(Z39=\"\",\"\",Input!Q44)","v":""},null,0,null,null,0,"C",0,0,0,0,0,0,0,1,0,0,0,0,0,"L",0,{"$error":"#DIV/0!"},0,"",""]
[null,null,null,null,null,null,null,null,"M",null,"Schäden total",null,null,null,null,null,null,null,null,null,null,{"$f":"V29+V33+V38","v":0},null,"",{"$f":"IF(AB40>NB_joueurs,\"\",Input!B45)","v":""},null,null,38,null,{"$f":"IF(Z40=\"\",\"\",Input!Q45)","v":""},null,0,null,null,0,"C",0,0,0,0,0,0,0,1,0,0,0,0,0,"L",0,{"$error":"#DIV/0!"},0,"",""]
[null,null,null,null,null,null,null,null,"{",null,"Spielende ohne Schaden",null,null,null,null,null,null,null,null,null,null,{"$f":"AV54&\" / \"&AL56","v":"0 / 0"},null,"",{"$f":"IF(AB41>NB_joueurs,\"\",Input!B46)","v":""},null,null,39,null,{"$f":"IF(Z41=\"\",\"\",Input!Q46)","v":""},null,0,null,null,0,"C",0,0,0,0,0,0,0,1,0,0,0,0,0,"L",0,{"$error":"#DIV/0!"},0,"",""]
[null,null,null,null,null,null,null,null,null,null,null,null,null,null,null,null,null,null,null,null,null,null,null,"",{"$f":"IF(AB42>NB_joueurs,\"\",Input!B47)","v":""},null,null,40,null,{"$f":"IF(Z42=\"\",\"\",Input!Q47)","v":""},null,0,null,null,0,"C",0,0,0,0,0,0,0,1,0,0,0,0,0,"L",0,{"$error":"#DIV/0!"},0,"",""]
[null,null,null,null,null,null,null,null,null,null,null,null,null,null,null,null,null,null,null,null,null,null,null,"",{"$f":"IF(AB43>NB_joueurs,\"\",Input!B48)","v":""},null,null,41,null,{"$f":"IF(Z43=\"\",\"\",Input!Q48)","v":""},null,0,null,null,0,"C",0,0,0,0,0,0,0,1,0,0,0,0,0,"L",0,{"$error":"#DIV/0!"},0,"",""]
[null,null,null,null,null,null,null,null,null,null,null,null,null,null,null,null,null,null,null,null,null,null,null,"",{"$f":"IF(AB44>NB_joueurs,\"\",Input!B49)","v":""},null,null,42,null,{"$f":"IF(Z44=\"\",\"\",Input!Q49)","v":""},null,0,null,null,0,"C",0,0,0,0,0,0,0,1,0,0,0,0,0,"L",0,{"$error":"#DIV/0!"},0,"",""]
[null,null,null,null,null,null,null,null,null,null,null,null,null,null,null,null,null,null,null,null,null,null,null,"",{"$f":"IF(AB45>NB_joueurs,\"\",Input!B50)","v":""},null,null,43,null,{"$f":"IF(Z45=\"\",\"\",Input!Q50)","v":""},null,0,null,null,0,"C",0,0,0,0,0,0,0,1,0,0,0,0,0,"L",0,{"$error":"#DIV/0!"},0,"",""]
[null,null,null,null,null,null,null,null,null,null,null,null,null,null,null,null,null,null,null,null,null,null,null,"",{"$f":"IF(AB46>NB_joueurs,\"\",Input!B51)","v":""},null,null,44,null,{"$f":"IF(Z46=\"\",\"\",Input!Q51)","v":""},null,0,null,null,0,"C",0,0,0,0,0,0,0,1,0,0,0,0,0,"L",0,{"$error":"#DIV/0!"},0,"",""]
[null,null,null,null,null,null,null,null,null,null,null,null,null,null,null,null,null,null,null,null,null,null,null,"",{"$f":"IF(AB47>NB_joueurs,\"\",Input!B52)","v":""},null,null,45,null,{"$f":"IF(Z47=\"\",\"\",Input!Q52)","v":""},null,0,null,null,0,"C",0,0,0,0,0,0,0,1,0,0,0,0,0,"L",0,{"$error":"#DIV/0!"},0,"",""]
[null,null,null,null,null,null,null,null,null,null,null,null,null,null,null,null,null,null,null,null,null,null,null,"",{"$f":"IF(AB48>NB_joueurs,\"\",Input!B53)","v":""},null,null,46,null,{"$f":"IF(Z48=\"\",\"\",Input!Q53)","v":""},null,0,null,null,0,"C",0,0,0,0,0,0,0,1,0,0,0,0,0,"L",0,{"$error":"#DIV/0!"},0,"",""]
[null,null,null,null,null,null,null,null,null,null,null,null,null,null,null,null,null,null,null,null,null,null,null,"",{"$f":"IF(AB49>NB_joueurs,\"\",Input!B54)","v":""},null,null,47,null,{"$f":"IF(Z49=\"\",\"\",Input!Q54)","v":""},null,0,null,null,0,"C",0,0,0,0,0,0,0,1,0,0,0,0,0,"L",0,{"$error":"#DIV/0!"},0,"",""]
["Hilfe",null,null,null,null,null,null,null,null,null,null,null,null,null,null,null,null,null,null,null,null,null,null,"",{"$f":"IF(AB50>NB_joueurs,\"\",Input!B55)","v":""},null,null,48,null,{"$f":"IF(Z50=\"\",\"\",Input!Q55)","v":""},null,0,null,null,0,"C",0,0,0,0,0,0,0,1,0,0,0,0,0,"L",0,{"$error":"#DIV/0!"},0,"",""]
["ja/nein",null,null,null,null,null,null,null,null,null,null,null,null,null,null,null,null,null,null,null,null,null,null,"",{"$f":"IF(AB51>NB_joueurs,\"\",Input!B56)","v":""},null,null,49,null,{"$f":"IF(Z51=\"\",\"\",Input!Q56)","v":""},null,0,null,null,0,"C",0,0,0,0,0,0,0,1,0,0,0,0,0,"L",0,{"$error":"#DIV/0!"},0,"",""]
[null,null,null,null,null,null,null,null,null,null,null,null,null,null,null,null,null,null,null,null,null,null,null,"",{"$f":"IF(AB52>NB_joueurs,\"\",Input!B57)","v":""},null,null,50,null,{"$f":"IF(Z52=\"\",\"\",Input!Q57)","v":""},null,0,null,null,0,"C",0,0,0,0,0,0,0,1,0,0,0,0,0,"L",0,{"$error":"#DIV/0!"},0,"",""]
[null,null,null,null,null,null,null,null,null,null,null,null,null,null,null,null,null,null,null,null,null,null,null,null,null,null,null,null,null,null,null,null,null,null,null,null,0,{"$f":"SUM(AL3:AL52)","v":0},{"$f":"SUM(AM3:AM52)","v":0},0,0,0,0,null,{"$f":"SUM(AS3:AS52)","v":0},{"$f":"SUM(AT3:AT52)","v":0},{"$f":"SUM(AU3:AU52)","v":0},{"$f":"SUM(AV3:AV52)","v":0}]
["zurück","Einstellungen",null,null,null,null,null,null,null,null,null,null,null,null,null,null,null,null,null,null,null,null,null,null,null,null,null,null,null,null,null," = Total acc.",null,null,null,null,0,{"$f":"COUNTIF(AD3:AD52,\"S\")","v":0},0,{"$f":"IF(H20=0,0,AM53-AM54)","v":0},null,null,null,null,null,"nb sans accident",null,{"$f":"COUNTIF(AV3:AV52,0)-(50-AL56)","v":0}]
["nach oben",null,null,null,null,null,null,null,null,null,null,null,null,null,null,null,null,null,null,null,null,null,null,null,null,null,null,null,null,null,null,null,null,null,null,null,0,{"$f":"AL53/10000","v":0},null,null,{"$f":"INT(AO53/10000)","v":0},{"$f":"INT(AP53/10000)","v":0},{"$f":"AQ53-AO55-AP55","v":0}]
[null,null,null,null,null,null,null,null,null,null,null,null,null,null,null,null,null,null,null,null,null,null,null,null,null,null,null,null,null,null,null,null,null,null,null,null,0,{"$f":"COUNTA(Z3:Z52)","v":0}]
[null,null,"Prämie in CHF"]
[]
[null,null,null,null,null,null,null,null,null,null,null,null,null,null,null,null,null,null,null,null,null,null,null,null,null,null,null,null,null,null,null,null,null,null,null,null,null,null,null,null,null,null,null,"Prime d'asssurance"]
[null,null,"Zuschlag bei ",null,null,null,null,null,null,null,null,null,null,null,null,null,null,null,null,null,null,null,null,null,null,null,null,null,null,null,null,null,null,null,null,null,null,"Accidents entre",null,null,"Tirage image","Sélection ",null,null,"Liste","Choix :",1]
[null,null,"Sachschaden",null,null,null,null,null,null,null,null,null,null,null,null,null,null,null,null,null,null,null,null,null,null,null,null,null,null,null,null,null,null,null,null,null,null,1,"et",1,8,{"$f":"IF(AO61=0,0,IF(AO61=8,8,IF(AQ53=0,1,AO61)))","v":8},null,1,{"$f":"Prime","v":600},"Prime :",{"$f":"VLOOKUP(AU60,AR61:AS90,2)","v":600}]
[null,null,"(10% pro Schaden)",null,null,null,null,null,null,null,null,null,null,null,null,null,null,null,null,null,null,null,null,null,null,null,null,null,null,null,null,null,null,null,null,null,null,null,null,null,null,null,null,2,275]
[null,null,null,null,null,null,null,null,null,null,null,null,null,null,null,null,null,null,null,null,null,null,null,null,null,null,null,null,null,null,null,null,null,null,null,null,null,null,null,null,null,null,null,3,300]
[null,null,null,null,null,null,null,null,null,null,null,null,null,null,null,null,null,null,null,null,null,null,null,null,null,null,null,null,null,null,null,null,null,null,null,null,null,null,null,null,null,null,null,4,350]
[null,null,"Selbstbehalt für Spieler:in «S»",null,null,null,null,null,null,null,null,null,null,null,null,null,null,null,null,null,null,null,null,null,null,null,null,null,null,null,null,null,null,null,null,null,null,{"$f":"IF(H20=0,\"START\",\"Année suivante\")","v":"START"},null,null,null,null,null,5,375]
[null,null,"Siehe Anzeigesteuerung",null,null,null,null,null,null,null,null,null,null,null,null,null,null,null,null,null,null,null,null,null,null,null,null,null,null,null,null,null,null,null,null,null,null,{"$f":"IF(H20=0,\"déclencher les événements.\",\"constater les nouveaux accidents.\")","v":"déclencher les événements."},null,null,null,null,null,6,400]
[null,null,null,null,null,null,null,null,null,null,null,null,null,null,null,null,null,null,null,null,null,null,null,null,null,null,null,null,null,null,null,null,null,null,null,null,null,null,null,null,null,null,null,7,425]
[null,null,null,null,null,null,null,null,null,null,null,null,null,null,null,null,null,null,null,null,null,null,null,null,null,null,null,null,null,null,null,null,null,null,null,null,"Surprime :",{"$f":"IF(AM68=2,FALSE,TRUE)","v":false},2,null,null,null,null,8,450]
[null,null,"Risikoniveau",null,null,null,null,null,null,null,null,null,null,null,null,null,null,null,null,null,null,null,null,null,null,null,null,null,null,null,null,null,null,null,null,null,"Franchise :",{"$f":"IF(AM69=2,FALSE,TRUE)","v":false},2,false,null,null,null,9,475]
[null,null,null,null,null,null,null,null,null,null,null,null,null,null,null,null,null,null,null,null,null,null,null,null,null,null,null,null,null,null,null,null,null,null,null,null,"Risque :",{"$f":"AM70-1","v":1},2,null,null,null,null,10,500]
[null,null,null,null,null,null,null,null,null,null,null,null,null,null,null,null,null,null,null,null,null,null,null,null,null,null,null,null,null,null,null,null,null,null,null,null,null,null,null,null,null,null,null,11,525]
[null,null,null,null,null,null,null,null,null,null,null,null,null,null,null,null,null,null,null,null,null,null,null,null,null,null,null,null,null,null,null,null,null,null,null,null,"New",0,"0=défaut; 1=garde",null,null,null,null,12,550]
[null,null,null,null,null,null,null,null,null,null,null,null,null,null,null,null,null,null,null,null,null,null,null,null,null,null,null,null,null,null,null,null,null,null,null,null,null,null,null,null,null,null,null,13,575]
[null,null,"Zoom",null,null,null,null,null,null,null,null,null,null,null,null,null,null,null,null,null,null,null,null,null,null,null,null,null,null,null,null,null,null,null,null,null,null,null,null,null,null,null,null,14,600]
[null,null,null,null,null,null,null,null,null,"Minimum",null,null,null,null,null,100,null,"%",null,null,null,null,null,null,null,null,null,null,null,null,null,null,null,null,null,null,null,null,null,null,null,null,null,15,625]
[null,null,null,null,null,null,null,null,null,null,null,null,null,null,null,null,null,null,null,null,null,null,null,null,null,null,null,null,null,null,null,null,null,null,null,null,null,null,null,null,null,null,null,16,650]
[null,null,null,null,null,null,null,null,null,"Maximum",null,null,null,null,null,160,null,"%",null,null,null,null,null,null,null,null,null,null,null,null,null,null,null,null,null,null,null,null,null,null,null,null,null,17,675]
[null,null,null,null,null,null,null,null,null,null,null,null,null,null,null,null,null,null,null,null,null,null,null,null,null,null,null,null,null,null,null,null,null,null,null,null,null,null,null,null,null,null,null,18,700]
[null,null,null,null,null,null,null,null,null,null,null,null,null,null,null,null,null,null,null,null,null,null,null,null,null,null,null,null,null,null,null,null,null,null,null,null,null,null,null,null,null,null,null,19,725]
[null,null,null,null,null,null,null,null,null,null,null,null,null,null,null,null,null,null,null,null,null,null,null,null,null,null,null,null,null,null,null,null,null,null,null,null,null,null,null,null,null,null,null,20,750]
["Hilfe",null,null,null,null,null,null,null,null,null,null,null,null,null,null,null,null,null,null,null,null,null,null,null,null,null,null,null,null,null,null,null,null,null,null,null,null,null,null,null,null,null,null,21,775]
["ja/nein","zurück",null,null,null,null,null,null,null,null,null,null,null,null,null,null,null,"zurück",null,null,null,null,null,null,null,null,null,null,null,null,null,null,null,null,null,null,null,null,null,null,null,null,null,22,800]
[null,null,null,null,null,null,null,null,null,null,null,null,null,null,null,null,null,null,null,null,null,null,null,null,null,null,null,null,null,null,null,null,null,null,null,null,null,null,null,null,null,null,null,23,825]
[null,null,null,null,null,null,null,null,null,null,null,null,null,null,null,null,null,null,null,null,null,null,null,null,null,null,null,null,null,null,null,null,null,null,null,null,null,null,null,null,null,null,null,24,850]
[null,null,null,null,null,null,null,null,null,null,null,null,null,null,null,null,null,null,null,null,null,null,null,null,null,null,null,null,null,null,null,null,null,null,null,null,null,null,null,null,null,null,null,25,875]
[null,null,null,null,null,null,null,null,null,null,null,null,null,null,null,null,null,null,null,null,null,null,null,null,null,null,null,null,null,null,null,null,null,null,null,null,null,null,null,null,null,null,null,26,900]
[null,null,null,null,null,null,null,null,null,null,null,null,null,null,null,null,null,null,null,null,null,null,null,null,null,null,null,null,null,null,null,null,null,null,null,null,null,null,null,null,null,null,null,27,925]
[null,null,null,null,null,null,null,null,null,null,null,null,null,null,null,null,null,null,null,null,null,null,null,null,null,null,null,null,null,null,null,null,null,null,null,null,null,null,null,null,null,null,null,28,950]
[null,null,null,null,null,null,null,null,null,null,null,null,null,null,null,null,null,null,null,null,null,null,null,null,null,null,null,null,null,null,null,null,null,null,null,null,null,null,null,null,null,null,null,29,975]
[null,null,null,null,null,null,null,null,null,null,null,null,null,null,null,null,null,null,null,null,null,null,null,null,null,null,null,null,null,null,null,null,null,null,null,null,null,null,null,null,null,null,null,30,1000]

{"sheet":"Gespeicherte Gruppen","index":3,"n_rows":77,"n_cols":16,"rows_kept":77,"cut":false,"hidden":false,"merged":[[15,0,17,0],[20,0,25,0]]}
[null,{"$f":"COUNTA(B8:B57)","v":50},{"$f":"COUNTA(C8:C57)","v":0},{"$f":"COUNTA(D8:D57)","v":0},{"$f":"COUNTA(E8:E57)","v":0},0,0,0,0,0,0,0,0,0,0,25]
[]
[]
[]
[]
[]
[null,"Gruppe 1","Gruppe 2","Gruppe 3","Gruppe 4","Gruppe 5","Gruppe 6","Gruppe 7","Gruppe 8","Gruppe 9","Gruppe 10","Gruppe 11","Gruppe 12","Gruppe 13","Gruppe 14","Gruppe 15"]
[null,"Spieler:in 1",null,null,null,null,null,null,null,null,null,null,null,null,null,"Michelle"]
[null,"Spieler:in 2",null,null,null,null,null,null,null,null,null,null,null,null,null,"Milena"]
[null,"Spieler:in 3",null,null,null,null,null,null,null,null,null,null,null,null,null,"Yael"]
[null,"Spieler:in 4",null,null,null,null,null,null,null,null,null,null,null,null,null,"Sophie"]
[null,"Spieler:in 5",null,null,null,null,null,null,null,null,null,null,null,null,null,"Anna"]
[null,"Spieler:in 6",null,null,null,null,null,null,null,null,null,null,null,null,null,"Naveen"]
[null,"Spieler:in 7",null,null,null,null,null,null,null,null,null,null,null,null,null,"Jacki"]
[null,"Spieler:in 8",null,null,null,null,null,null,null,null,null,null,null,null,null,"Matthew"]
["Nummer der Gruppe, die in die Simulation übertragen werden soll","Spieler:in 9",null,null,null,null,null,null,null,null,null,null,null,null,null,"Lukas"]
[null,"Spieler:in 10",null,null,null,null,null,null,null,null,null,null,null,null,null,"Damian"]
[null,"Spieler:in 11",null,null,null,null,null,null,null,null,null,null,null,null,null,"Eva"]
[null,"Spieler:in 12",null,null,null,null,null,null,null,null,null,null,null,null,null,"Samira"]
[null,"Spieler:in 13",null,null,null,null,null,null,null,null,null,null,null,null,null,"Hendrik"]
["Klicken Sie auf das Bild um die ausgewählte Liste in die Tabelle in der Lasche «Input» zu übertragen. ","Spieler:in 14",null,null,null,null,null,null,null,null,null,null,null,null,null,"Luis"]
[null,"Spieler:in 15",null,null,null,null,null,null,null,null,null,null,null,null,null,"Raphael"]
[null,"Spieler:in 16",null,null,null,null,null,null,null,null,null,null,null,null,null,"Mauro"]
[null,"Spieler:in 17",null,null,null,null,null,null,null,null,null,null,null,null,null,"Melinda"]
[null,"Spieler:in 18",null,null,null,null,null,null,null,null,null,null,null,null,null,"Carla"]
[null,"Spieler:in 19",null,null,null,null,null,null,null,null,null,null,null,null,null,"Olivier"]
[null,"Spieler:in 20",null,null,null,null,null,null,null,null,null,null,null,null,null,"Jan"]
[null,"Spieler:in 21",null,null,null,null,null,null,null,null,null,null,null,null,null,"Alina"]
[null,"Spieler:in 22",null,null,null,null,null,null,null,null,null,null,null,null,null,"Lilly"]
[null,"Spieler:in 23",null,null,null,null,null,null,null,null,null,null,null,null,null,"Cheyenne"]
[null,"Spieler:in 24",null,null,null,null,null,null,null,null,null,null,null,null,null,"Janik"]
[null,"Spieler:in 25",null,null,null,null,null,null,null,null,null,null,null,null,null,"Nadja"]
[null,"Spieler:in 26"]
[null,"Spieler:in 27"]
[null,"Spieler:in 28"]
[null,"Spieler:in 29"]
[null,"Spieler:in 30"]
[null,"Spieler:in 31"]
[null,"Spieler:in 32"]
[null,"Spieler:in 33"]
[null,"Spieler:in 34"]
[null,"Spieler:in 35"]
[null,"Spieler:in 36"]
[null,"Spieler:in 37"]
[null,"Spieler:in 38"]
[null,"Spieler:in 39"]
[null,"Spieler:in 40"]
[null,"Spieler:in 41"]
[null,"Spieler:in 42"]
[null,"Spieler:in 43"]
[null,"Spieler:in 44"]
[null,"Spieler:in 45"]
[null,"Spieler:in 46"]
[null,"Spieler:in 47"]
[null,"Spieler:in 48"]
[null,"Spieler:in 49"]
[null,"Spieler:in 50"]
[]
[]
[]
[]
[15]
["Gruppe 1"]
["Gruppe 2"]
["Gruppe 3"]
["Gruppe 4"]
["Gruppe 5"]
["Gruppe 6"]
["Gruppe 7"]
["Gruppe 8"]
["Gruppe 9"]
["Gruppe 10"]
["Gruppe 11"]
["Gruppe 12"]
["Gruppe 13"]
["Gruppe 14"]
["Gruppe 15"]

{"sheet":"Images","index":4,"n_rows":14,"n_cols":9,"rows_kept":14,"cut":false,"hidden":true,"merged":[]}
[]
[]
[]
[]
[]
[]
[]
[]
[]
[]
[]
[]
[]
[null,null,null,null,null,null,null,null,"  "]